[Event "Reykjavik Open 2025"]
[Site "Reykjavik"]
[Date "2025.04.09"]
[Round "1.18"]
[White "Jonsson, Gauti Pall"]
[Black "Cornette, Matthieu"]
[Result "1/2-1/2"]
[Annotator "TA"]
[ECO "B30"]
[WhiteElo "2122"]
[BlackElo "2528"]
[PlyCount "196"]
[EventDate "2025.04.09"]
[EventType "swiss"]
[EventCountry "ISL"]
[SourceTitle "playchess.com"]
[Source "ChessBase"]
[SourceQuality "1"]
[TimeControl "40/5400+30:1800+30"]

{[%evp 9,196,20,20,15,44,16,18,19,17,24,27,20,52,15,20,20,26,8,8,0,39,4,44,8,81,42,49,42,48,39,50,58,86,56,62,41,116,0,0,0,32,39,62,32,49,29,50,37,46,38,43,16,21,0,93,63,77,67,70,76,85,99,123,128,227,59,77,104,80,8,16,8,8,0,0,0,0,0,0,0,0,0,0,0,0,0,0,0,0,-25,-22,-28,-19,-43,-43,-43,-41,-41,-32,-30,-35,-31,0,0,0,-30,-32,-34,-36,-40,-36,-57,-57,-57,-57,-57,-57,-57,-57,-57,-57,-62,-62,-62,-57,-57,-57,-57,-57,-57,-57,-57,-57,-57,-57,-57,-57,-57,-57,-57,-57,-57,-57,-57,-57,-57,-57,-57,-57,-57,-57,-57,-57,-57,-57,-57,-57,-58,-57,-57,-57,-57,-57,-57,-57,-57,-57,-57,-57,-57,-57,-57,-57,-57,-57,-57,-57,-58,-57,-57,-57,-57,-57,-57,-57,-64,-64,-65,-62]} 1. e4 {[%emt 0:00:13]} c5 {[%emt 0:00:11]} 2. Nf3 {[%emt 0:00:47]} Nc6 {[%emt 0:00:38]} 3. Bc4 {[%emt 0:00:32]} Nf6 {[%emt 0:01:23]} 4. Qe2 {[%emt 0:03:46]} d5 {[%emt 0:10:58]} 5. exd5 {[%emt 0:01:24]} Nxd5 {[%emt 0:00:05]} 6. O-O $146 {[%emt 0:02:05] B30: Sicilian: 2...Nc6 3 Bb5, lines without ...g6.} (6. Nc3 Nb6 7. Bb5 Bd7 8. a4 a6 9. Bd3 Nd4 10. Nxd4 cxd4 11. Ne4 e6 12. b3 {1-0 Santarius,E (2393)-Piasetski,L (2242) Bay Area op Burlingame 2019 (5)}) 6... Nb6 {[%emt 0:05:56]} 7. Bb5 {[%emt 0:03:15]} Bd7 {[%emt 0:00:09]} 8. a4 {[%emt 0:01:44] The position is equal.} a6 {[%emt 0:11:05]} 9. Bxc6 {[%emt 0:04:33]} Bxc6 {[%emt 0:00:05]} 10. Ne5 {[%emt 0:00:25]} Qd5 {[%emt 0:03:17][%csl Gc6][%cal Rd5g2]} 11. Nxc6 {[%emt 0:01:26]} (11. f4 g6 12. Nc3 Qd4+ 13. Rf2) 11... Qxc6 {[%emt 0:00:04]} 12. Nc3 {[%emt 0:08:51]} e6 {[%emt 0:01:10]} 13. d3 {[%emt 0:04:47]} Be7 {[%emt 0:02:25]} 14. a5 {[%emt 0:05:40]} Nc8 {[%emt 0:06:20]} 15. Qg4 {[%emt 0:04:00]} Kf8 {[%emt 0:15:42]} 16. Bg5 {[%emt 0:05:51]} f6 {[%emt 0:00:33]} (16... h5 $11 {keeps the balance.} 17. Bxe7+ Nxe7) 17. Bd2 {[%emt 0:01:22]} Kf7 {[%emt 0:00:36]} 18. Rfe1 {[%emt 0:03:07]} h5 {[%emt 0:00:15]} 19. Qe2 {[%emt 0:03:31]} Na7 {[%emt 0:02:40]} 20. Ra4 {[%emt 0:04:41]} Rae8 {[%emt 0:00:08]} 21. Rh4 {[%emt 0:04:22]} g6 {[%emt 0:01:06]} 22. Re4 {[%emt 0:00:32][%cal Re4e6]} Bd8 {[%emt 0:01:31]} (22... e5 $1 $14) 23. Nd1 {[%emt 0:01:20]} (23. Rc4 $1 $16) 23... Nb5 $11 {[%emt 0:00:52]} 24. Ne3 {[%emt 0:06:35]} h4 {[%emt 0:12:10]} 25. h3 $1 {[%emt 0:04:08]} Nd4 {[%emt 0:01:54]} 26. Qd1 {[%emt 0:00:21]} Kg7 {[%emt 0:03:49]} 27. c3 {[%emt 0:03:25]} Nb5 {[%emt 0:02:03][%cal Ob5d6]} 28. Nc4 {[%emt 0:00:55]} Bc7 {[%emt 0:00:51]} 29. Qe2 {[%emt 0:03:16][%cal Re4e6]} Kf7 {[%emt 0:00:34]} 30. Bf4 {[%emt 0:03:03]} e5 {[%emt 0:00:58]} 31. Bh2 {[%emt 0:03:00]} g5 {[%emt 0:01:22] [#]} (31... Nd6 $11) 32. Bxe5 $1 {[%emt 0:03:25]} fxe5 {[%emt 0:03:14]} (32... Rxe5 33. Nxe5+ fxe5 (33... Bxe5 $2 34. f4 $18) 34. Rxe5 Bxe5 (34... Bxa5 35. Re7+ Kg6 36. Re6+ Kf7 37. Rxc6) 35. Qxe5 $18) (32... Bxe5 33. Nxe5+) 33. Nxe5+ {[%emt 0:01:44]} Bxe5 {[%emt 0:00:17]} 34. Rxe5 {[%emt 0:00:14]} Nc7 {[%emt 0:03:03] [#]} 35. Qg4 $1 {[%emt 0:01:44] Chess con chili.} Rxe5 {[%emt 0:01:06]} 36. Rxe5 {[%emt 0:00:07] Hoping for Qf5+.} Ne8 {[%emt 0:03:11] [#]} (36... Ne6 $16 {was necessary.}) 37. Qxg5 $2 {[%emt 0:01:30]} (37. Rxg5 $6 Rh6 38. Qc4+ Kf8 39. Rxc5 (39. Qxc5+ Qxc5 40. Rxc5 Ke7 $11) 39... Qf6 $16) (37. Qc4+ $1 $18 Kf6 38. Rxc5) 37... Nf6 $1 $14 {[%emt 0:00:13]} 38. Rxc5 {[%emt 0:01:29] White is more active.} Rh5 {[%emt 0:04:07]} 39. Rxc6 {[%emt 0:01:06]} ({White should play} 39. Qxh5+ $16 Nxh5 40. Rxc6 bxc6 41. d4) 39... Rxg5 $16 {[%emt 0:00:01][%mdl 4096] Endgame KRN-KR} 40. Rc7+ {[%emt 0:00:13]} Kg6 {[%emt 0:00:09]} 41. b4 {[%emt 0:31:08]} Nd5 $1 {[%emt 0:09:01]} 42. Rxb7 {[%emt 0:00:00]} Nf4 $1 {[%emt 0:03:20]} 43. Rb6+ {[%emt 0:00:00]} Kf5 {[%emt 0:00:03]} 44. g3 {[%emt 0:00:00]} hxg3 {[%emt 0:00:25] ( -> ...g2)} 45. fxg3 {[%emt 0:00:00]} (45. Rxa6 g2 (45... Nxh3+ {leads to mate.} 46. Kf1 g2+ 47. Ke2 g1=Q 48. Rf6+ Kxf6 49. d4 Nf4+ 50. Ke3 Rg3+ 51. Kxf4 Qxf2+ 52. Ke4 Qf5#)) 45... Rxg3+ {[%emt 0:00:05]} 46. Kf2 {[%emt 0:00:00]} Rxd3 {[%emt 0:00:09]} 47. Rxa6 {[%emt 0:00:00]} Rxc3 {[%emt 0:00:33]} 48. Ke1 {[%emt 0:00:00]} Ke4 {[%emt 0:01:45]} 49. Kd2 {[%emt 0:00:00]} Rd3+ {[%emt 0:01:32]} 50. Kc2 {[%emt 0:00:00]} Nd5 {[%emt 0:00:11]} 51. Rh6 {[%emt 0:00:00]} Nxb4+ {[%emt 0:02:13]} 52. Kb2 {[%emt 0:00:00]} Kd5 {[%emt 0:01:08]} 53. a6 {[%emt 0:00:00]} Kc4 {[%emt 0:01:50] ...Rd2+ would now be deadly.} 54. Rh4+ {[%emt 0:00:00]} Kb5 {[%emt 0:00:07]} 55. a7 {[%emt 0:00:00]} Rd2+ {[%emt 0:00:29]} 56. Kc3 {[%emt 0:00:00]} (56. Kb3 $5 Rd3+ $8 57. Kb2 $11) 56... Rd3+ {[%emt 0:00:04]} (56... Ra2 {simplifies} 57. Rxb4+ Kc6 58. Kd4 Rxa7 59. Ke5 Kd7) 57. Kb2 {[%emt 0:00:00]} Rd8 {[%emt 0:00:06] Inhibits a8Q.} 58. Rh7 {[%emt 0:00:00] Black is slightly better.} Kb6 {[%emt 0:00:19] Against Rb7+} 59. Kc3 {[%emt 0:00:00]} Nc6 {[%emt 0:00:26]} 60. h4 {[%emt 0:00:00][%cal Bh3h4,Bh4h5][%mdl 32]} Nxa7 {[%emt 0:00:05]} ({Much worse is} 60... Ra8 61. Rg7 $11) 61. h5 {[%emt 0:00:00]} Nb5+ {[%emt 0:00:03]} 62. Kc2 {[%emt 0:00:00]} Kc5 {[%emt 0:00:21]} 63. h6 {[%emt 0:00:00]} Nd4+ {[%emt 0:02:36]} 64. Kc3 {[%emt 0:00:00]} Nf5 {[%emt 0:00:52]} 65. Rf7 {[%emt 0:00:00]} Nxh6 {[%emt 0:00:41]} 66. Rf6 {[%emt 0:00:00]} Ng4 {[%emt 0:00:36]} 67. Rf5+ {[%emt 0:00:00]} Kc6 {[%emt 0:00:04]} 68. Rg5 {[%emt 0:00:00]} Ne3 {[%emt 0:00:17]} 69. Rh5 {[%emt 0:00:00]} Nd5+ {[%emt 0:01:21]} 70. Kc4 {[%emt 0:00:00]} Nb6+ {[%emt 0:00:04]} 71. Kc3 {[%emt 0:00:00]} Ra8 {[%emt 0:00:23]} 72. Rh6+ {[%emt 0:00:00]} Kc5 {[%emt 0:00:06]} 73. Kd3 {[%emt 0:00:00]} Nd5 {[%emt 0:00:09]} 74. Rh5 {[%emt 0:00:00]} Ra4 {[%emt 0:00:43]} 75. Rh8 {[%emt 0:00:00]} Rd4+ {[%emt 0:00:23]} 76. Ke2 {[%emt 0:00:00]} Rf4 {[%emt 0:00:08]} 77. Ra8 {[%emt 0:00:00]} Re4+ {[%emt 0:00:32]} 78. Kf3 {[%emt 0:00:00]} Re3+ {[%emt 0:00:03]} 79. Kg4 {[%emt 0:00:00]} Kd4 {[%emt 0:00:06]} 80. Rd8 {[%emt 0:00:47]} Re7 {[%emt 0:00:43]} 81. Kf3 {[%emt 0:01:07]} Re5 {[%emt 0:00:59]} 82. Ra8 {[%emt 0:01:03]} Rf5+ {[%emt 0:00:16]} 83. Kg3 {[%emt 0:00:23]} Nc3 {[%emt 0:00:22]} 84. Rd8+ {[%emt 0:00:13]} Ke3 {[%emt 0:00:07]} 85. Kg4 {[%emt 0:00:25]} Ra5 {[%emt 0:00:26]} 86. Rb8 {[%emt 0:00:34]} Ne4 {[%emt 0:01:21]} 87. Rb3+ {[%emt 0:00:10]} Kd4 {[%emt 0:00:03]} 88. Rb4+ {[%emt 0:00:18]} Ke5 {[%emt 0:00:04]} 89. Rb8 {[%emt 0:00:22]} Ra3 {[%emt 0:02:14]} 90. Rb5+ {[%emt 0:00:22]} Ke6 {[%emt 0:00:27]} 91. Rb6+ {[%emt 0:00:14]} Nd6 {[%emt 0:00:01]} 92. Rb8 {[%emt 0:00:58]} Ke5 {[%emt 0:00:21]} 93. Rh8 {[%emt 0:00:48]} Ne4 {[%emt 0:00:35]} 94. Re8+ {[%emt 0:00:12]} Kd4 {[%emt 0:00:05] ( -> ...Nf6+)} 95. Kf4 {[%emt 0:00:45]} Nf6 {[%emt 0:00:14]} 96. Rd8+ {[%emt 0:00:54]} Nd5+ {[%emt 0:00:01]} 97. Kg4 {[%emt 0:00:19]} Ra7 {[%emt 0:00:03]} 98. Kf3 {[%emt 0:00:31]} Ke5 {[%emt 0:00:43] Weighted Error Value: White=0.16 (very precise) /Black=0.14 (very precise)   Missed win:     	White=1     	---        Mistake:       	White=2     	Black=4      Inaccurate:     	White=9     	Black=5      OK:         	White=39    	Black=33     Best:        	White=1     	Black=6      Strong:       	White=2     	Black=3} 1/2-1/2

[Event "Reykjavik Open 2025"]
[Site "Reykjavik"]
[Date "2025.04.09"]
[Round "1.19"]
[White "Sivuk, Vitaly"]
[Black "Burgalat, Eliot"]
[Result "0-1"]
[Annotator "TA"]
[ECO "A21"]
[WhiteElo "2505"]
[BlackElo "2119"]
[PlyCount "92"]
[EventDate "2025.04.09"]
[EventType "swiss"]
[EventCountry "ISL"]
[SourceTitle "playchess.com"]
[Source "ChessBase"]
[SourceQuality "1"]
[TimeControl "40/5400+30:1800+30"]

{[%evp 16,91,14,20,38,39,51,48,38,35,41,15,13,11,39,37,54,36,52,53,37,21,51,46,60,37,34,35,26,33,44,0,0,0,0,-26,-19,-19,-16,-22,0,0,50,60,79,65,60,0,0,0,0,-372,-402,-393,-385,-333,-393,-345,-335,-415,-397,-387,-387,-354,0,0,0,-360,-335,-318,-289,-5608,-5608,-29976,-29977,-29982,-29983,-29974]} 1. c4 {[%emt 0:00:07]} e5 {[%emt 0:00:16]} 2. d3 {[%emt 0:00:42]} Nc6 {[%emt 0:00:26]} 3. Nf3 {[%emt 0:00:17]} f5 {[%emt 0:00:50]} 4. a3 {[%emt 0:00:46]} a5 {[%emt 0:00:43]} 5. Nc3 {[%emt 0:00:22]} Nf6 {[%emt 0:00:59]} 6. g3 {[%emt 0:01:05]} Be7 {[%emt 0:02:41]} 7. Bg2 {[%emt 0:00:18]} O-O {[%emt 0:00:48]} 8. O-O {[%emt 0:00:12]} d6 {[%emt 0:02:01]} 9. Rb1 {[%emt 0:02:56]} h6 {[%emt 0:23:23] A21: English Opening: 1...e5 2 Nc3.} 10. b4 {[%emt 0:01:07]} axb4 {[%emt 0:01:30]} 11. axb4 {[%emt 0:00:06]} Qe8 {[%emt 0:01:36] White is slightly better.} 12. b5 {[%emt 0:03:34]} Nd8 {[%emt 0:02:14]} 13. c5 {[%emt 0:03:23]} Be6 $146 {[%emt 0:15:42]} (13... Ne6 14. cxd6 cxd6 15. Nd2 f4 16. Nc4 Ng5 17. d4 Bf5 18. dxe5 dxe5 19. Nxe5 fxg3 {0-1 Bakija,A (2010)-Van Batenburg,M (2109) Groningen op 59th 2023 (3)}) 14. Bb2 {[%emt 0:09:01]} Nd5 {[%emt 0:08:57]} 15. Nd2 {[%emt 0:06:03]} Qf7 {[%emt 0:12:03]} 16. Ra1 {[%emt 0:11:58]} Rxa1 {[%emt 0:00:54]} 17. Qxa1 {[%emt 0:00:07]} Bg5 {[%emt 0:11:25]} 18. Nf3 {[%emt 0:10:01][%cal Ob5b6]} Nxc3 {[%emt 0:00:37]} 19. Bxc3 {[%emt 0:00:15]} Bf6 {[%emt 0:00:21]} 20. b6 {[%emt 0:04:30]} Nc6 {[%emt 0:03:08]} 21. bxc7 {[%emt 0:02:36]} Qxc7 {[%emt 0:00:02]} 22. cxd6 {[%emt 0:00:46]} Qxd6 {[%emt 0:00:02]} 23. Rb1 {[%emt 0:00:23]} e4 $1 {[%emt 0:02:32]} 24. Ne1 {[%emt 0:08:11]} Nd4 {[%emt 0:03:45]} 25. Bxd4 {[%emt 0:05:48]} Bxd4 {[%emt 0:00:01]} 26. Qa4 {[%emt 0:00:09]} f4 {[%emt 0:03:23]} 27. gxf4 {[%emt 0:00:23]} Bxf2+ {[%emt 0:00:31]} 28. Kxf2 {[%emt 0:04:22]} Qxf4+ {[%emt 0:00:05]} ({Black should try} 28... Rxf4+ $11 29. Ke3 Qc5+ 30. d4 (30. Kxf4 $2 g5+ 31. Kxe4 Bd5+ 32. Kf5 Bb3+ 33. Kg4 Bxa4 $19) (30. Qd4 $2 Qg5 $19) 30... Qg5) 29. Kg1 $14 {[%emt 0:00:14]} Qf2+ {[%emt 0:01:14]} 30. Kh1 {[%emt 0:00:05]} Qxe2 {[%emt 0:01:40][%cal Of8f1] ( -> ...Rf1+!)} 31. Nc2 {[%emt 0:01:42]} (31. Bxe4 $2 Rf1#) ({White should try} 31. Qd4 $1 $14) 31... exd3 $40 {[%emt 0:00:58][%mdl 128] Black is up to no good.} 32. Nd4 {[%emt 0:06:20]} Qg4 {[%emt 0:00:02]} 33. Bf3 $2 {[%emt 0:13:34][%mdl 8192]} (33. Qa1 $1 $11 {and White stays safe.}) 33... Rxf3 $19 {[%emt 0:01:12]} 34. Qe8+ {[%emt 0:00:21]} Kh7 {[%emt 0:00:01]} 35. Nxe6 {[%emt 0:00:19][%cal Oe8d7] Hoping for Qd7!.} Qf5 {[%emt 0:00:26] ( -> ...Rf1+)} 36. Rg1 {[%emt 0:04:27][%csl Ge6][%cal Rg1g7]} Rf1 {[%emt 0:00:29][%cal Rf5e4]} 37. Ng5+ {[%emt 0:00:25]} hxg5 {[%emt 0:00:07][%cal Rf5f3][%mdl 4096] Endgame KQR-KQR. Black is 3 pawns up.} 38. Qh5+ {[%emt 0:00:04]} Kg8 {[%emt 0:00:05] ( -> ...Qe4+)} 39. Qe8+ {[%emt 0:00:02]} Kh7 {[%emt 0:01:01][%cal Rf5f3]} 40. Qh5+ {[%emt 0:00:05]} Kg8 {[%emt 0:00:04] ( -> ...Qd5+)} 41. Qe8+ {[%emt 0:30:03]} Qf8 {[%emt 0:05:34]} 42. Qe6+ {[%emt 0:00:00] [#]} Rf7 $1 {[%emt 0:02:16] Threatens to win with ...Qd8.} 43. Rxg5 $2 {[%emt 0:00:00] [#]} (43. Rf1) 43... d2 $1 {[%emt 0:04:53]} 44. Rd5 {[%emt 0:00:00]} Qa8 {[%emt 0:03:40] Black mates.} 45. h3 {[%emt 0:04:38]} Qa1+ {[%emt 0:02:14]} 46. Kh2 {[%emt 0:00:11]} d1=Q {[%emt 0:00:20] Weighted Error Value: White=0.53/Black=0.19 (very precise)   Loses game:     	White=1     	---        Mistake:       	White=2     	Black=1      Inaccurate:     	White=4     	Black=2      OK:         	White=14    	Black=10     Best:        	White=4     	Black=7      Strong:       	---       	Black=3} ({Weaker is} 46... d1=B 47. Rd8+ Kh7 48. Qe1 $17 (48. Qxf7 Qe5+ 49. Kh1 Bc2 $15)) 0-1

[Event "Reykjavik Open 2025"]
[Site "Reykjavik"]
[Date "2025.04.09"]
[Round "1.20"]
[White "Agbabishvili, Lali"]
[Black "Papp, Gabor"]
[Result "0-1"]
[Annotator "ChessBase"]
[ECO "A11"]
[WhiteElo "2119"]
[BlackElo "2502"]
[PlyCount "94"]
[EventDate "2025.04.09"]
[EventType "swiss"]
[EventCountry "ISL"]
[SourceTitle "playchess.com"]
[Source "ChessBase"]
[SourceQuality "1"]
[TimeControl "40/5400+30:1800+30"]

1. g3 {[%emt 0:00:07]} e5 {[%emt 0:00:36]} 2. c4 {[%emt 0:00:13]} c6 {[%emt 0:00:31]} 3. Bg2 {[%emt 0:00:47]} d5 {[%emt 0:00:11]} 4. cxd5 {[%emt 0:00:51]} cxd5 {[%emt 0:00:06]} 5. Nf3 {[%emt 0:00:05]} Nc6 {[%emt 0:01:22]} 6. O-O {[%emt 0:02:49]} Nf6 {[%emt 0:05:56]} 7. d3 {[%emt 0:04:40]} Be7 {[%emt 0:01:31]} 8. Nc3 {[%emt 0:01:53]} d4 {[%emt 0:01:04]} 9. Nb1 {[%emt 0:00:40]} O-O {[%emt 0:00:25]} 10. Bg5 {[%emt 0:02:50]} Be6 {[%emt 0:02:02]} 11. Nbd2 {[%emt 0:00:39]} Nd5 {[%emt 0:01:03]} 12. Bxe7 {[%emt 0:00:13]} Qxe7 {[%emt 0:00:06]} 13. a3 {[%emt 0:01:05]} f5 {[%emt 0:00:45]} 14. Rc1 {[%emt 0:00:22]} Kh8 {[%emt 0:04:05]} 15. Rxc6 {[%emt 0:10:08]} bxc6 {[%emt 0:00:12]} 16. Nxe5 {[%emt 0:00:03]} Qc7 {[%emt 0:01:20]} 17. Ndc4 {[%emt 0:00:37]} f4 {[%emt 0:02:37]} 18. Qa4 {[%emt 0:03:39]} c5 {[%emt 0:01:27]} 19. Qa6 {[%emt 0:01:03]} Rae8 {[%emt 0:00:50]} 20. Qd6 {[%emt 0:00:30]} Qxd6 {[%emt 0:04:33]} 21. Nxd6 {[%emt 0:00:06]} Rb8 {[%emt 0:02:05]} 22. Bxd5 {[%emt 0:23:59]} Bxd5 {[%emt 0:00:07]} 23. Nd7 {[%emt 0:03:05]} Rbd8 {[%emt 0:02:58]} 24. Nxf8 {[%emt 0:00:06]} Rxd6 {[%emt 0:00:04]} 25. Rc1 {[%emt 0:00:05]} f3 {[%emt 0:11:42]} 26. e3 {[%emt 0:00:50]} Kg8 {[%emt 0:11:52]} 27. Nxh7 {[%emt 0:05:50]} Kxh7 {[%emt 0:00:45]} 28. Rxc5 {[%emt 0:02:25]} Be4 {[%emt 0:00:41]} 29. exd4 {[%emt 0:13:15]} Rxd4 {[%emt 0:00:22]} 30. h3 {[%emt 0:00:47]} Rxd3 {[%emt 0:02:16]} 31. g4 {[%emt 0:02:20]} Rd1+ {[%emt 0:01:52]} 32. Kh2 {[%emt 0:00:02]} Rd2 {[%emt 0:00:04]} 33. Kg3 {[%emt 0:00:04]} Rxb2 {[%emt 0:00:03]} 34. Kf4 {[%emt 0:03:26]} Bb7 {[%emt 0:00:52]} 35. Rc7 {[%emt 0:00:33]} a6 {[%emt 0:01:58]} 36. h4 {[%emt 0:00:28]} Bd5 {[%emt 0:00:25]} 37. Rc5 {[%emt 0:00:33]} Be6 {[%emt 0:08:26]} 38. Kg3 {[%emt 0:03:18]} Rb1 {[%emt 0:00:39]} 39. Kf4 {[%emt 0:04:13]} Rg1 {[%emt 0:01:47]} 40. Rg5 {[%emt 0:00:24]} Rc1 {[%emt 0:00:29]} 41. Kg3 {[%emt 0:32:36]} Rc4 {[%emt 0:30:22]} 42. Rh5+ {[%emt 0:04:34]} Kg8 {[%emt 0:00:37]} 43. Ra5 {[%emt 0:00:26]} Bxg4 {[%emt 0:01:12]} 44. Rxa6 {[%emt 0:00:07]} Bh5 {[%emt 0:00:02]} 45. Ra5 {[%emt 0:00:29]} Rg4+ {[%emt 0:01:16]} 46. Kh3 {[%emt 0:00:32]} g6 {[%emt 0:00:04]} 47. Rg5 {[%emt 0:01:59]} Ra4 {[%emt 0:00:17]} 0-1

[Event "Reykjavik Open 2025"]
[Site "Reykjavik"]
[Date "2025.04.09"]
[Round "1.21"]
[White "Zierk, Steven"]
[Black "Hartung, Thomas"]
[Result "1-0"]
[Annotator "TA"]
[ECO "D74"]
[WhiteElo "2501"]
[BlackElo "2118"]
[PlyCount "101"]
[EventDate "2025.04.09"]
[EventType "swiss"]
[EventCountry "ISL"]
[SourceTitle "playchess.com"]
[Source "ChessBase"]
[SourceQuality "1"]
[TimeControl "40/5400+30:1800+30"]

{[%evp 19,101,35,63,27,25,14,17,6,3,14,22,18,36,52,77,18,78,47,51,10,10,14,3,0,8,2,0,0,0,-8,27,41,29,27,46,0,0,0,0,0,17,0,29,20,20,14,18,8,41,37,89,83,75,0,0,0,0,0,99,102,154,0,10,14,15,17,16,14,31,44,39,37,37,33,1156,21,1159,1159,1159,1159,1159,1159,1150,1082]} 1. Nf3 {[%emt 0:00:04]} d5 {[%emt 0:00:10]} 2. g3 {[%emt 0:00:09]} Nf6 {[%emt 0:00:55]} 3. Bg2 {[%emt 0:00:08]} g6 {[%emt 0:01:04]} 4. c4 {[%emt 0:00:43]} Bg7 {[%emt 0:03:17]} 5. cxd5 {[%emt 0:01:42]} Nxd5 {[%emt 0:00:16]} 6. Nc3 {[%emt 0:00:58]} O-O {[%emt 0:02:52]} 7. O-O {[%emt 0:00:44]} c6 {[%emt 0:07:35]} 8. d4 {[%emt 0:02:54]} Nd7 {[%emt 0:05:02]} 9. e4 {[%emt 0:01:48]} Nxc3 {[%emt 0:01:11]} 10. bxc3 {[%emt 0:00:08]} Qa5 {[%emt 0:01:01]} 11. Qb3 {[%emt 0:08:36] D74: Fianchetto Grünfeld: Main Line (5 Nf3 0-0 6 cxd5 Nxd5 7 0-0).} Nb6 {[%emt 0:03:11]} 12. Bd2 {[%emt 0:07:12]} Be6 {[%emt 0:03:04] [#] Prevents c4.} 13. c4 $1 {[%emt 0:04:39] The position is equal.} Qa6 {[%emt 0:05:02] [#]} 14. d5 $1 {[%emt 0:01:42]} cxd5 $146 {[%emt 0:10:28]} (14... Bxa1 15. dxe6) (14... Bxa1 15. Rxa1 cxd5 16. cxd5 Bd7 17. Ne5 Qa4 18. Qb2 f6 19. Nxd7 Qxd7 20. Qb3 Qa4 21. Qxa4 Nxa4 {½-½ Kuhn,H (2038)-Schmid,F (2194) Landesliga Sued 1920 2019 (7.5)}) 15. cxd5 {[%emt 0:01:11]} Bd7 {[%emt 0:04:54]} (15... Bxa1 16. dxe6 Bg7 17. exf7+ Kh8 (17... Rxf7 18. Ng5 $16) 18. Bf4 $14) 16. Bc3 {[%emt 0:09:03]} Ba4 {[%emt 0:08:32]} 17. Qb4 {[%emt 0:01:50] White is more active.} (17. Qb2 $1 $16 Bxc3 18. Qxc3) 17... Qc4 {[%emt 0:02:53]} (17... Qb5 $1 $11 {keeps the balance.}) 18. Rac1 {[%emt 0:02:30] aiming for Qxc4.} (18. Qxc4 Nxc4 19. Bxg7 Kxg7 20. Rac1) 18... Rfc8 {[%emt 0:07:58]} 19. Bd2 {[%emt 0:06:26]} (19. Qxc4 {simplifies} Rxc4 20. Bxg7 Kxg7 21. Rxc4 Nxc4 22. Rc1) 19... Qxb4 {[%emt 0:03:38]} 20. Bxb4 {[%emt 0:00:16]} Kf8 {[%emt 0:00:28]} 21. Bh3 {[%emt 0:19:20]} Bd7 {[%emt 0:01:55]} 22. Bxd7 {[%emt 0:01:53]} Nxd7 {[%emt 0:00:01][%cal Bb6d7,Bd7e5,Be5f3][%mdl 32]} 23. Kg2 {[%emt 0:00:47]} Ke8 {[%emt 0:02:45]} 24. Rfd1 {[%emt 0:03:15]} Ne5 {[%emt 0:06:08]} 25. Bc3 {[%emt 0:02:58]} Nxf3 {[%emt 0:02:53]} 26. Bxg7 {[%emt 0:00:08][%cal Bc3g7,Bg7h6,Bh6e3,Be3d4][%mdl 32]} Ng5 {[%emt 0:01:12]} 27. f3 {[%emt 0:02:55]} (27. e5 $1 $14 {might be stronger.}) 27... f6 $11 {[%emt 0:04:24]} 28. Bh6 {[%emt 0:01:56]} Nf7 {[%emt 0:00:03]} 29. Be3 {[%emt 0:01:03]} b6 {[%emt 0:01:02]} 30. f4 {[%emt 0:02:30]} Kd7 {[%emt 0:00:26]} 31. Kf3 {[%emt 0:05:48]} b5 {[%emt 0:04:20]} 32. Bd4 {[%emt 0:05:53]} Nd6 {[%emt 0:04:27]} 33. e5 {[%emt 0:02:22]} fxe5 {[%emt 0:00:01]} 34. fxe5 {[%emt 0:00:12]} Rf8+ {[%emt 0:00:12]} (34... Nc4 $14) 35. Ke2 $1 $16 {[%emt 0:00:39]} Nc4 {[%emt 0:00:17]} 36. Rf1 {[%emt 0:00:51]} ({Better is} 36. e6+ $16 Kd6 37. a4) 36... a6 $11 {[%emt 0:00:12]} 37. a4 {[%emt 0:01:29]} Rxf1 {[%emt 0:02:12]} 38. Rxf1 {[%emt 0:00:05]} (38. Kxf1 Ke8 $15 (38... Rc8 39. Ke2 $16)) 38... bxa4 {[%emt 0:01:06][%mdl 4096] Endgame [#] KRB-KRN. Black is a pawn up.} (38... Rd8 $1 $11) 39. Kd3 $1 $16 {[%emt 0:00:30]} Rc8 {[%emt 0:01:07]} ({Black should try} 39... Na5) 40. Rb1 $2 {[%emt 0:00:59]} ({White must play} 40. Rf7 $16) 40... a3 {[%emt 0:01:43]} 41. Rb4 {[%emt 0:08:11]} Nb2+ {[%emt 0:03:39]} 42. Bxb2 {[%emt 0:00:37]} axb2 {[%emt 0:00:02]} 43. Rxb2 $11 {[%emt 0:00:07] KR-KR} Rc1 {[%emt 0:09:15]} 44. Rb7+ {[%emt 0:02:31]} Kd8 {[%emt 0:00:55]} 45. e6 {[%emt 0:05:05][%cal Be5e6,Be6e7][%mdl 32]} Rc7 {[%emt 0:08:16]} 46. Rb6 {[%emt 0:02:02]} Ra7 {[%emt 0:00:24][%mdl 8192]} (46... a5 $14) 47. Rb8+ $18 {[%emt 0:00:58]} Kc7 {[%emt 0:00:03] [#]} 48. Re8 {[%emt 0:00:11] White is clearly winning.} Kb6 {[%emt 0:00:51] [#]} 49. d6 $1 {[%emt 0:01:26][%mdl 512]} exd6 {[%emt 0:01:10]} 50. e7 {[%emt 0:00:09]} Rb7 {[%emt 0:02:35] Against Rb8} 51. Kd4 {[%emt 0:09:05] Weighted Error Value: White=0.14 (very precise) /Black=0.30  Loses game:     	---       	Black=2      Mistake:       	White=4     	Black=4      Inaccurate:     	White=2     	Black=3      OK:         	White=13    	Black=18     Best:        	White=1     	Black=1      Strong:       	White=3     	---} 1-0